bitfinex/quotes_SOLUSD_20240703
["timestamp","ask_amount","ask_price","bid_price","bid_amount"]
[1719991377960,6.7938,147.2,147.07,15.1984]
[1719991378486,6.7939,147.19,147.08,0.17]
[1719991378782,6.7957,147.15,147.07,15.1984]
[1719991378963,7.25714028,147.21,147.07,15.1984]
[1719991379165,6.7947,147.18,147.07,15.1984]
[1719991379363,6.7949,147.17,147.07,15.1984]
[1719991380275,6.7945,147.18,147.07,15.1984]
[1719991380663,7.25714028,147.21,147.07,15.1984]
[1719991380850,7.25714028,147.21,147.08,0.34]
[1719991380851,20.0,147.2,147.08,0.34]
[1719991381053,26.7938,147.2,147.08,0.34]
[1719991381253,6.795,147.17,147.07,15.1984]
[1719991381486,6.7949,147.17,147.07,15.1984]
[1719991381659,6.794,147.19,147.07,15.1984]
[1719991381861,20.0,147.2,147.08,0.34]
[1719991381862,26.7936,147.2,147.08,0.34]
[1719991382186,20.0,147.2,147.09,21.9759]
[1719991382389,6.7926,147.22,147.1,0.34]
[1719991382565,6.7926,147.22,147.09,21.9759]
[1719991382566,6.7926,147.22,147.09,17.7534]
[1719991382882,6.7949,147.17,147.09,17.7534]
[1719991383788,6.7945,147.18,147.09,17.7534]
[1719991385563,6.7948,147.17,147.09,17.7534]
[1719991386085,6.7945,147.18,147.09,17.7534]
[1719991389172,16.9829,147.21,147.09,17.7534]
[1719991389391,6.7944,147.18,147.09,17.7534]
[1719991389774,6.794,147.19,147.09,17.7534]
[1719991389989,26.7936,147.2,147.09,17.7534]
[1719991390288,20.0,147.2,147.09,17.7534]
[1719991390594,6.7924,147.23,147.09,17.7534]
[1719991390817,20.0,147.22,147.09,17.7534]
[1719991391086,20.0,147.24,147.11,6.2863]
[1719991391264,6.7925,147.22,147.11,6.2863]
[1719991391662,6.7922,147.23,147.11,6.2863]
[1719991392174,6.7926,147.22,147.11,6.2863]
[1719991392371,6.7921,147.23,147.11,6.2863]
[1719991392575,6.7921,147.23,147.12,15.3906]
[1719991393106,6.7925,147.22,147.12,15.0506]
[1719991394305,20.0,147.24,147.13,6.0231]
[1719991394493,26.7917,147.24,147.13,6.0231]
[1719991394695,6.7922,147.23,147.13,6.0231]
[1719991395774,26.7917,147.24,147.13,6.0231]
[1719991396612,6.7921,147.23,147.13,6.0231]
[1719991397102,20.0,147.24,147.13,6.0231]
[1719991397283,6.7926,147.22,147.13,6.0231]
[1719991397482,20.0,147.24,147.13,6.0231]
[1719991397789,6.7926,147.22,147.13,6.0231]
[1719991398091,51.1,147.24,147.13,6.0231]
[1719991398399,6.7928,147.22,147.13,6.0231]
[1719991399105,57.892,147.24,147.13,6.0231]
[1719991399312,6.7918,147.24,147.14,15.0002]
[1719991400711,7.25714028,147.25,147.14,15.0002]
[1719991401017,14.04844028,147.25,147.14,15.0002]
[1719991401615,7.25714028,147.25,147.14,15.0002]
[1719991401783,14.04844028,147.25,147.14,15.0002]
[1719991402214,6.7902,147.27,147.16,16.5586]
[1719991403582,6.7899,147.28,147.16,16.5586]
[1719991403783,6.7899,147.28,147.17,6.071]
[1719991404281,6.7899,147.28,147.18,16.5603]
[1719991404598,6.7894,147.29,147.18,16.5603]
[1719991404806,20.0,147.28,147.18,16.5603]
[1719991405183,6.7894,147.29,147.18,16.5603]
[1719991405585,6.7897,147.28,147.18,16.5603]
[1719991405897,7.25714028,147.3,147.18,16.5603]
[1719991406293,6.7896,147.29,147.18,16.5603]
[1719991406882,14.04594028,147.3,147.19,6.0621]
[1719991407083,7.25714028,147.3,147.2,16.6034]
[1719991407290,6.7884,147.31,147.21,0.17]
[1719991407509,6.7879,147.32,147.21,0.17]
[1719991407687,6.7879,147.32,147.21,0.34]
[1719991407886,6.7879,147.32,147.22,6.5501]
[1719991408218,6.7885,147.31,147.22,6.5501]
[1719991408392,6.7889,147.3,147.22,6.5501]
[1719991408809,6.7883,147.32,147.22,6.5501]
[1719991409004,6.7885,147.31,147.22,6.5501]
[1719991409216,6.789,147.3,147.22,6.5501]
[1719991409891,6.7884,147.32,147.22,6.5501]
[1719991410495,6.7884,147.31,147.22,6.5501]
[1719991410898,65.83996296,147.34,147.22,6.5501]
[1719991411095,6.789,147.3,147.22,6.5501]
[1719991411290,27.25714028,147.33,147.22,6.5501]
[1719991411291,6.7894,147.29,147.22,6.5501]
[1719991411695,6.7912,147.25,147.22,6.5501]
[1719991412011,6.7916,147.24,147.22,6.5501]
[1719991412206,51.53,147.24,147.17,6.2838]
[1719991412505,16.9788,147.25,147.16,15.5729]
[1719991412506,6.7945,147.18,147.16,15.5729]
[1719991412899,6.794,147.19,147.16,15.5729]
[1719991414813,6.7933,147.21,147.16,15.5729]
[1719991415007,55.44983148,147.23,147.16,15.5729]
[1719991415310,6.7933,147.21,147.16,15.5729]
[1719991416217,14.05044028,147.21,147.16,15.5729]
[1719991417797,6.7935,147.2,147.16,15.5729]
[1719991418815,7.25714028,147.21,147.16,15.5729]
[1719991419001,14.05014028,147.21,147.16,15.5729]
[1719991419520,7.25714028,147.21,147.16,15.5729]
[1719991419720,6.7926,147.22,147.16,15.5729]
[1719991419927,14.5548912,147.23,147.16,15.5729]
[1719991420309,14.5548912,147.23,147.09,1.18387481]
[1719991420310,43.5242,147.21,147.09,1.18387481]
[1719991420517,6.7963,147.14,147.07,22.9514]
[1719991420720,6.7971,147.13,147.07,22.9514]
[1719991421237,16.9901,147.15,147.07,22.9514]
[1719991421533,6.7972,147.12,147.07,22.9514]
[1719991421738,6.7967,147.13,147.07,22.9514]
[1719991422824,6.7945,147.18,147.07,22.9514]
[1719991423017,15.01447273,147.2,147.08,1.35917325]
[1719991423018,6.7939,147.19,147.08,1.35917325]
[1719991423223,15.01447273,147.2,147.07,22.9514]
[1719991423429,15.01447273,147.2,147.08,1.52919087]
[1719991423721,15.01447273,147.2,147.09,0.17]
[1719991424221,21.80787273,147.2,147.09,0.17]
[1719991424530,7.25178153,147.2,147.09,22.0141]
[1719991424703,7.25714028,147.24,147.11,15.7008]
[1719991425602,13.75369764,147.24,147.11,15.7008]
[1719991425802,7.25714028,147.24,147.11,15.7008]
[1719991426705,6.7926,147.22,147.11,15.7008]
[1719991427427,20.43,147.16,147.05,22.3545]
[1719991427638,6.7987,147.09,147.05,22.3545]
[1719991428319,6.7981,147.1,147.05,22.3545]
[1719991429238,6.7977,147.11,147.05,22.3545]
[1719991429731,30.74369764,147.15,147.05,22.3545]
[1719991429911,6.7973,147.12,147.05,22.3545]
[1719991430735,6.7976,147.11,147.05,22.3545]
[1719991431315,6.7972,147.12,147.05,22.3545]
[1719991432930,7.06065914,147.15,147.05,22.3545]
[1719991433236,28.1926912,147.19,147.05,22.3545]
[1719991433428,33.98553523,147.18,147.05,22.3545]
[1719991433633,6.7974,147.12,147.05,22.3545]
[1719991433934,37.4176,147.17,147.05,22.3545]
[1719991434638,6.7967,147.13,147.05,22.3545]
[1719991437229,6.7963,147.14,147.05,22.3545]
[1719991437724,6.7968,147.13,147.05,22.3545]
[1719991438626,6.7962,147.15,147.05,22.3545]
[1719991438822,6.7957,147.16,147.05,22.3545]
[1719991439916,6.7963,147.14,147.05,22.3545]
[1719991440126,6.7959,147.15,147.05,22.3545]
[1719991440747,33.45786431,147.18,147.05,22.3545]
[1719991441042,6.7954,147.16,147.05,22.3545]
[1719991441742,13.02786431,147.18,147.05,22.3545]
[1719991442241,6.7953,147.16,147.05,22.3545]
[1719991442927,6.7949,147.17,147.05,22.3545]
[1719991443918,6.7954,147.16,147.05,22.3545]
[1719991444229,6.795,147.17,147.05,22.3545]
[1719991444734,13.02786431,147.18,147.06,22.8465]
[1719991444950,6.7945,147.18,147.08,22.0551]
[1719991446039,6.794,147.19,147.08,22.0551]
[1719991446835,6.7945,147.18,147.08,22.0551]
[1719991447141,41.54130695,147.21,147.08,22.0551]
[1719991447142,6.7939,147.19,147.08,22.0551]
[1719991448419,6.7939,147.19,147.09,0.17]
[1719991448850,6.53130695,147.21,147.09,0.17]
[1719991449014,6.7939,147.19,147.09,0.34]
[1719991449918,6.7948,147.18,147.08,22.0551]
[1719991450749,6.53130695,147.21,147.09,0.17]
[1719991451042,6.7942,147.19,147.09,0.34]
[1719991451817,37.9136,147.2,147.09,0.34]
[1719991452023,31.12,147.2,147.09,0.34]
[1719991452754,6.794,147.19,147.09,0.34]
[1719991452913,37.9136,147.2,147.09,0.34]
[1719991454223,37.9136,147.2,147.1,21.7083]
[1719991455139,31.12,147.2,147.1,21.7083]
[1719991455322,31.12,147.2,147.11,0.34]
[1719991456819,37.9135,147.2,147.11,0.34]
[1719991457034,31.12,147.2,147.11,0.34]
[1719991459340,13.32440695,147.21,147.11,0.34]
[1719991460024,6.7931,147.21,147.11,0.34]
[1719991461338,6.7915,147.25,147.14,6.3209]
[1719991461539,6.7915,147.25,147.15,15.8486]
[1719991461742,6.7918,147.24,147.16,1.35855279]
[1719991461953,6.7913,147.25,147.16,1.35855279]
[1719991462246,6.7913,147.25,147.15,15.8486]
[1719991462449,6.7917,147.24,147.15,15.8486]
[1719991463049,6.791,147.26,147.15,15.8486]
[1719991463242,6.791,147.26,147.16,0.34]
[1719991463631,6.7903,147.27,147.17,6.6047]
[1719991464034,6.7903,147.27,147.18,15.5381]
[1719991464844,37.9098,147.28,147.18,15.5381]
[1719991465443,6.7903,147.27,147.18,15.5381]
[1719991465959,31.12,147.28,147.18,15.5381]
[1719991466157,5.88203001,147.31,147.18,15.5381]
[1719991466158,37.00203001,147.31,147.19,0.17]
[1719991466455,6.7896,147.29,147.19,0.17]
[1719991467054,6.789,147.3,147.19,0.17]
[1719991467944,6.789,147.3,147.2,6.5655]
[1719991468149,22.4759,147.44,147.25,22.1733]
[1719991468354,22.4759,147.44,147.26,0.17]
[1719991468355,31.12,147.41,147.26,0.17]
[1719991468532,22.4759,147.44,147.25,22.1733]
[1719991468533,31.12,147.37,147.25,22.1733]
[1719991468733,31.12,147.37,147.3,6.7886]
[1719991468958,31.12,147.37,147.25,22.1733]
[1719991469135,31.12,147.37,147.31,6.788]
[1719991469343,31.12,147.37,147.32,6.7879]
[1719991469855,31.12,147.37,147.28,6.7894]
[1719991469856,6.7878,147.33,147.28,6.7894]
[1719991470058,20.0,147.32,147.29,6.7892]
[1719991470360,20.0,147.32,147.3,6.7885]
[1719991470560,6.7865,147.35,147.3,6.7885]
[1719991470735,20.0,147.34,147.3,6.7885]
[1719991471558,6.7861,147.36,147.31,6.7883]
[1719991471757,20.0,147.35,147.31,6.7883]
[1719991472152,20.0,147.35,147.25,22.1733]
[1719991472153,21.9336,147.48,147.32,21.7256]
[1719991472345,6.7828,147.44,147.38,6.7851]
[1719991472668,48.0737,147.46,147.32,52.8456]
[1719991472854,6.7843,147.4,147.35,6.7864]
[1719991473051,6.7839,147.41,147.36,6.786]
[1719991473253,6.7834,147.42,147.37,6.7856]
[1719991474245,6.7834,147.42,147.32,21.7256]
[1719991475063,37.9029,147.43,147.37,6.7852]
[1719991475285,20.0,147.42,147.37,6.7852]
[1719991475764,31.12,147.46,147.32,21.7256]
[1719991475972,31.12,147.46,147.28,131.12]
[1719991475973,6.7814,147.47,147.42,6.7832]
[1719991476148,20.43,147.47,147.33,52.5833]
[1719991476344,6.782,147.45,147.4,28.2472]
[1719991476665,6.782,147.45,147.4,28.2475]
[1719991477662,20.0,147.44,147.4,28.2475]
[1719991477837,31.12,147.48,147.4,21.4633]
[1719991478048,6.7811,147.47,147.4,21.4633]
[1719991478438,6.7807,147.48,147.4,21.4633]
[1719991479359,31.12,147.51,147.4,21.4633]
[1719991479567,6.7806,147.48,147.4,21.4633]
[1719991479940,31.12,147.51,147.4,21.4633]
[1719991479941,6.781,147.47,147.4,21.4633]
[1719991480673,6.7806,147.48,147.4,21.4633]
[1719991480856,20.0,147.47,147.4,21.4633]
[1719991481250,26.781,147.47,147.4,21.4633]
[1719991481446,20.0,147.47,147.4,21.4633]
[1719991481649,31.12,147.45,147.36,23.0704]
[1719991481961,20.0,147.44,147.36,23.0704]
[1719991482358,20.0,147.44,147.4,6.7842]
[1719991482557,20.0,147.44,147.41,6.7835]
[1719991482869,26.7825,147.44,147.39,6.7843]
[1719991483246,20.0,147.44,147.36,23.0704]
[1719991483858,68.8418,147.48,147.36,23.0704]
[1719991483859,6.7819,147.46,147.36,23.0704]
[1719991484071,20.0,147.45,147.36,23.0704]
[1719991484358,6.7807,147.48,147.37,0.17]
[1719991484564,6.7807,147.48,147.37,0.34]
[1719991484753,6.7806,147.48,147.37,0.34]
[1719991485675,6.7806,147.48,147.37,31.46]
[1719991485848,6.7806,147.48,147.38,6.163]
[1719991486174,6.7802,147.49,147.39,15.0453]
[1719991486364,6.7807,147.48,147.39,15.2153]
[1719991486672,20.0,147.47,147.39,15.2153]
[1719991486857,20.0,147.47,147.39,15.0453]
[1719991487871,26.7806,147.48,147.39,15.0453]
[1719991488175,40.43,147.48,147.39,15.0453]
[1719991488354,6.7818,147.46,147.39,15.0453]
[1719991489067,37.9018,147.46,147.39,15.0453]
[1719991489250,6.7819,147.45,147.39,15.0453]
[1719991489644,31.12,147.46,147.39,15.0453]
[1719991489984,37.9033,147.43,147.39,15.0453]
[1719991490171,31.12,147.43,147.39,15.0453]
[1719991492176,20.0,147.45,147.39,15.0453]
[1719991493951,31.12,147.46,147.39,15.0453]
[1719991495071,31.12,147.49,147.39,15.0453]
[1719991495857,37.9004,147.49,147.39,15.0453]
[1719991497163,37.9004,147.49,147.4,0.17]
[1719991497360,31.12,147.49,147.4,0.17]
[1719991497861,37.9001,147.49,147.4,0.17]
[1719991499491,6.7805,147.48,147.4,0.17]
[1719991500281,31.12,147.49,147.4,0.17]
[1719991500476,31.12,147.49,147.39,15.0453]
[1719991500778,37.3785,147.51,147.39,15.0453]
[1719991500779,37.9016,147.46,147.39,15.0453]
[1719991501156,31.12,147.46,147.39,15.0453]
[1719991501360,6.7837,147.42,147.39,15.0453]
[1719991501757,37.903,147.43,147.39,15.0453]
[1719991501973,31.12,147.43,147.39,15.0453]
[1719991502176,6.7842,147.4,147.39,15.0453]
[1719991502356,6.7842,147.4,147.38,6.163]
[1719991502559,6.7842,147.4,147.36,15.7891]
[1719991502560,31.12,147.43,147.36,15.7891]
[1719991502759,6.7853,147.38,147.36,15.7891]
[1719991503559,6.7856,147.37,147.36,15.7891]
[1719991503765,31.12,147.37,147.34,6.0955]
[1719991504084,6.7865,147.35,147.34,6.0955]
[1719991504463,6.7883,147.32,147.3,6.6541]
[1719991504879,6.7884,147.31,147.28,16.0708]
[1719991505089,31.12,147.3,147.28,16.0708]
[1719991505584,37.9089,147.3,147.26,6.234]
[1719991505776,6.7889,147.3,147.26,6.234]
[1719991506177,6.7894,147.29,147.26,6.234]
[1719991506476,6.7898,147.28,147.26,6.234]
[1719991506876,6.7893,147.29,147.26,6.234]
[1719991507294,6.7898,147.28,147.26,6.234]
[1719991507498,6.7894,147.29,147.26,6.234]
[1719991508789,6.7899,147.28,147.26,6.234]
[1719991508996,37.4008,147.32,147.24,15.0422]
[1719991509185,37.4008,147.32,147.22,6.4476]
[1719991509186,6.7911,147.25,147.22,6.4476]
[1719991509492,6.7909,147.26,147.22,6.4476]
[1719991509675,6.7912,147.25,147.22,6.4476]
[1719991510388,6.7907,147.27,147.22,6.4476]
[1719991511275,6.7899,147.28,147.23,6.792]
[1719991511601,6.7903,147.27,147.22,13.24]
[1719991511803,6.7898,147.28,147.23,6.7919]
[1719991511971,20.43,147.32,147.22,6.4476]
[1719991512177,6.7908,147.26,147.22,6.4476]
[1719991513797,6.7923,147.23,147.2,6.3842]
[1719991514000,55.39,147.28,147.2,6.3842]
[1719991514307,6.7932,147.21,147.19,15.0704]
[1719991514478,37.4085,147.25,147.19,15.0704]
[1719991514790,37.4085,147.25,147.16,13.1794]
[1719991514791,6.7935,147.2,147.16,6.3842]
[1719991516295,37.4108,147.23,147.16,6.3842]
[1719991516505,6.7944,147.18,147.15,16.3799]
[1719991516799,6.7967,147.13,147.12,6.0115]
[1719991516984,6.7963,147.14,147.12,6.0115]
[1719991517185,6.7967,147.13,147.12,6.0115]
[1719991517498,6.7958,147.15,147.12,6.0115]
[1719991518808,6.7954,147.16,147.12,6.0115]
[1719991519168,6.795,147.17,147.12,12.8084]
[1719991519370,6.7953,147.16,147.12,6.0115]
[1719991519801,6.7957,147.15,147.12,6.0115]
[1719991520408,6.7954,147.16,147.12,6.0115]
[1719991521101,34.96,147.2,147.12,6.0115]
[1719991521278,17.1498,147.24,147.12,12.8086]
[1719991521279,6.7952,147.17,147.12,12.8086]
[1719991521869,6.7952,147.17,147.13,6.7966]
[1719991522586,6.7944,147.18,147.13,6.7966]
[1719991522794,6.7949,147.17,147.12,12.8085]
[1719991522998,16.9845,147.2,147.12,6.0115]
[1719991523304,6.7963,147.14,147.12,6.0115]
[1719991523810,6.7967,147.13,147.12,6.0115]
[1719991524023,16.9913,147.14,147.08,6.4819]
[1719991524185,6.7985,147.09,147.08,6.4819]
[1719991524379,6.7981,147.1,147.08,6.4819]
[1719991524793,20.43,147.15,147.08,6.4819]
[1719991524990,20.0,147.14,147.08,6.4819]
[1719991525380,6.7972,147.12,147.08,6.4819]
[1719991525992,6.7977,147.11,147.08,6.4819]
[1719991526392,6.7972,147.12,147.08,6.4819]
[1719991528407,6.7976,147.11,147.08,6.4819]
[1719991528703,6.7973,147.12,147.08,6.4819]
[1719991528915,6.7973,147.12,147.08,13.2808]
[1719991529092,6.7973,147.12,147.08,6.4819]
[1719991531203,6.7973,147.12,147.08,13.2808]
[1719991531707,6.7968,147.13,147.08,13.2808]
[1719991532680,6.7968,147.13,147.09,6.7983]
[1719991533189,6.7968,147.13,147.08,6.4819]
[1719991533798,6.7968,147.13,147.08,13.2808]
[1719991534702,6.7968,147.13,147.09,6.7985]
[1719991535508,6.7968,147.13,147.08,13.2807]
[1719991536718,6.7968,147.13,147.09,6.7985]
[1719991538107,31.14,147.14,147.11,6.7976]
[1719991538506,31.14,147.14,147.1,6.7979]
[1719991538703,31.14,147.14,147.11,6.7972]
[1719991538889,31.14,147.14,147.1,6.7979]
[1719991540112,31.14,147.14,147.11,6.7975]
[1719991541908,31.14,147.18,147.11,6.7972]
[1719991542111,6.7955,147.16,147.11,6.7974]
[1719991542488,6.7955,147.16,147.12,6.7971]
[1719991543285,6.7958,147.15,147.11,6.7975]
[1719991543595,6.7954,147.16,147.11,6.7975]
[1719991543810,6.795,147.17,147.12,6.7969]
[1719991545090,31.14,147.18,147.11,6.7975]
[1719991545290,6.7954,147.16,147.11,6.7975]
[1719991545608,6.7954,147.16,147.12,6.7971]
[1719991546518,6.7952,147.17,147.12,6.7971]
[1719991547189,6.7955,147.16,147.12,6.7971]
[1719991549716,6.7949,147.17,147.12,6.7971]
[1719991551196,37.9344,147.18,147.08,6.4819]
[1719991551509,37.9344,147.18,147.13,6.7966]
[1719991552436,37.9344,147.18,147.14,6.7961]
[1719991553298,37.9344,147.18,147.13,6.7965]
[1719991553820,6.7948,147.17,147.13,6.7965]
[1719991554519,6.7954,147.16,147.09,0.34]
[1719991554704,31.14,147.18,147.13,15.9365]
[1719991554705,6.7948,147.18,147.13,15.9365]
[1719991554903,6.7948,147.18,147.13,22.7331]
[1719991555313,6.7949,147.17,147.13,15.9365]
[1719991555496,31.14,147.2,147.13,15.9365]
[1719991555699,6.7951,147.17,147.13,15.9365]
[1719991556201,6.7945,147.18,147.13,22.7328]
[1719991556999,6.7945,147.18,147.14,6.7961]
[1719991558417,6.7945,147.18,147.13,22.7331]
[1719991558711,31.14,147.2,147.13,15.9365]
[1719991558913,37.9348,147.17,147.13,15.9365]
[1719991559097,37.9348,147.17,147.13,22.7331]
[1719991559703,31.14,147.17,147.13,22.7331]
[1719991560095,6.794,147.19,147.14,6.7962]
[1719991560290,31.14,147.18,147.14,6.7962]
[1719991561021,31.14,147.18,147.15,6.7956]
[1719991561902,31.14,147.18,147.14,6.7961]
[1719991562523,31.14,147.18,147.13,15.9365]
[1719991562823,37.9345,147.18,147.14,6.7961]
[1719991563799,37.9347,147.18,147.13,15.9365]
[1719991564219,37.9347,147.18,147.13,22.7328]
[1719991564815,37.9347,147.18,147.14,6.7961]
[1719991564816,31.14,147.18,147.14,6.7961]
[1719991565019,31.14,147.18,147.15,6.7956]
[1719991565526,31.14,147.18,147.14,6.7961]
[1719991565717,6.7939,147.19,147.14,6.7961]
[1719991565930,6.7939,147.19,147.15,6.7957]
[1719991566119,31.14,147.18,147.15,6.7957]
[1719991566306,31.14,147.18,147.13,15.9365]
[1719991566503,37.9345,147.18,147.13,15.9365]
[1719991566902,37.9345,147.18,147.14,6.7961]
[1719991567108,31.14,147.18,147.08,6.4819]
[1719991567327,31.14,147.18,147.09,15.5114]
[1719991567621,6.7949,147.17,147.13,6.7966]
[1719991568324,37.9345,147.18,147.13,6.7966]
[1719991568498,31.14,147.18,147.13,6.7966]
[1719991568905,31.14,147.18,147.09,15.5114]
[1719991569106,6.7957,147.16,147.11,6.7972]
[1719991569403,6.7949,147.17,147.12,6.797]
[1719991569923,37.9348,147.18,147.12,6.797]
[1719991570104,6.7948,147.18,147.13,6.7964]
[1719991570300,31.14,147.17,147.13,6.7964]
[1719991570542,31.14,147.17,147.09,15.5114]
[1719991570913,31.14,147.17,147.13,6.7966]
[1719991572404,37.9349,147.17,147.12,6.7971]
[1719991572605,31.14,147.17,147.09,15.5114]
[1719991572904,31.14,147.17,147.12,6.797]
[1719991573104,37.9349,147.17,147.12,6.797]
[1719991573827,15.56,147.13,147.12,6.7971]
[1719991574205,15.56,147.13,147.09,22.3096]
[1719991574411,15.56,147.11,147.1,6.7979]
[1719991574631,15.56,147.12,147.11,6.7973]
[1719991574836,6.7948,147.18,147.12,6.7971]
[1719991575005,20.0,147.17,147.12,6.7971]
[1719991575206,0.07968714,147.2,147.09,15.5114]
[1719991575404,20.07968714,147.2,147.09,15.5114]
[1719991575604,0.07968714,147.2,147.09,15.5114]
[1719991575813,6.7948,147.18,147.13,6.7963]
[1719991576015,15.56,147.14,147.13,6.7963]
[1719991576212,15.56,147.14,147.09,15.5114]
[1719991576416,41.9284,147.18,147.09,22.3097]
[1719991576705,15.56,147.1,147.09,6.7983]
[1719991577306,6.7958,147.15,147.1,6.7978]
[1719991577509,6.7958,147.15,147.11,6.7976]
[1719991577708,6.7958,147.15,147.08,6.4819]
[1719991577709,15.56,147.12,147.1,6.798]
[1719991577926,6.7951,147.17,147.08,6.4819]
[1719991578135,21.4984,147.18,147.08,6.4819]
[1719991578309,0.07968714,147.2,147.09,15.56]
[1719991578623,15.56,147.15,147.14,6.7962]
[1719991578998,0.07968714,147.2,147.15,6.7955]
[1719991579203,15.56,147.16,147.15,6.7955]
[1719991579622,15.56,147.16,147.13,6.7963]
[1719991579799,31.12,147.14,147.08,6.4819]
[1719991580005,15.56,147.09,147.06,15.5178]
[1719991580197,15.56,147.07,147.06,22.3177]
[1719991580427,6.7973,147.12,147.06,22.3177]
[1719991580611,6.7967,147.13,147.07,6.7993]
[1719991580803,15.56,147.08,147.06,15.5178]
[1719991581005,15.56,147.07,147.06,15.5178]
[1719991581308,15.56,147.07,147.06,22.3177]
[1719991581824,6.7971,147.13,147.07,6.7994]
[1719991582035,37.9474,147.12,147.07,6.7992]
[1719991582218,31.15,147.12,147.06,15.5178]
[1719991582730,31.15,147.12,147.07,6.7993]
[1719991584726,31.15,147.12,147.09,6.7984]
[1719991585326,31.15,147.12,147.08,6.7989]
[1719991585508,31.15,147.12,147.09,6.7985]
[1719991585710,6.7963,147.14,147.09,6.7985]
[1719991585915,37.9463,147.14,147.09,6.7985]
[1719991586627,6.7969,147.13,147.06,15.5178]
[1719991587530,31.15,147.14,147.01,0.8416104]
[1719991587531,27.2317,147.02,147.01,0.8416104]
[1719991587731,66.10757885,147.02,147.01,0.8416104]
[1719991587938,95.66928296,147.02,147.01,0.8416104]
[1719991588314,34.78807885,147.01,147.0,0.0341]
[1719991588510,34.78807885,147.01,146.87,20.60915896]
[1719991588511,6.8045,146.97,146.87,20.60915896]
[1719991588726,37.9545,146.97,146.9,6.8072]
[1719991588921,31.15,146.97,146.91,6.8066]
[1719991589124,20.43,146.96,146.85,13.4611709]
[1719991589325,20.43,146.96,146.82,15.9236]
[1719991589326,31.15,146.94,146.82,15.9236]
[1719991589526,39.13487885,146.94,146.82,15.9236]
[1719991589735,45.94037885,146.94,146.87,6.8087]
[1719991590109,66.37037885,146.94,146.88,6.8081]
[1719991590311,39.13487885,146.94,146.89,6.8077]
[1719991591119,59.56487885,146.94,146.88,6.8082]
[1719991591435,66.37067885,146.94,146.82,15.9236]
[1719991591635,0.17,146.93,146.87,6.8083]
[1719991591814,0.17,146.93,146.88,6.808]
[1719991592021,59.56487885,146.94,146.89,6.8077]
[1719991592416,39.13487885,146.94,146.82,15.9236]
[1719991592610,7.98487885,146.94,146.82,47.0736]
[1719991593428,7.98487885,146.94,146.91,6.8064]
[1719991594537,7.98487885,146.94,146.92,6.8063]
[1719991595142,7.98487885,146.94,146.91,6.8067]
[1719991595329,7.98487885,146.94,146.92,6.8063]
[1719991595536,7.98487885,146.94,146.93,6.8059]
[1719991595837,7.98487885,146.94,146.82,147.0736]
[1719991595838,7.98487885,146.94,146.9,6.8072]
[1719991596036,7.98487885,146.94,146.82,47.0736]
[1719991596037,7.98487885,146.94,146.91,6.8067]
[1719991596743,7.98487885,146.94,146.92,6.8064]
[1719991597041,7.98487885,146.94,146.82,47.0736]
[1719991597240,7.98487885,146.94,146.91,6.8065]
[1719991598020,7.98487885,146.94,146.92,6.8062]
[1719991598220,7.98487885,146.94,146.82,47.0736]
[1719991598419,7.98487885,146.94,146.91,6.8068]